fUSD/lending_fUSD_20251028
["ID","MTS","AMOUNT","RATE_DAILY","PERIOD"]
[392556581,1761659448531,-151.0,0.00030136,31]
[392556582,1761659448543,-500.0,0.00030136,3]
[392556583,1761659448553,-423.06457658,0.00030136,3]
[392556584,1761659448565,-555.48759621,0.00030136,3]
[392556585,1761659448575,-505.73855401,0.00030136,3]
[392556586,1761659448585,-580.16633368,0.00030136,3]
[392556587,1761659448596,-500.0,0.00030136,3]
[392556588,1761659448606,-508.86692379,0.00030136,3]
[392556589,1761659448616,-500.0,0.00030136,3]
[392556590,1761659448627,-517.99769913,0.00030136,3]
[392556591,1761659448636,-500.0,0.00030136,3]
[392556592,1761659448647,-500.0,0.00030136,3]
[392556593,1761659448657,-365.92624393,0.00030136,3]
[392556594,1761659448667,-500.0,0.00030136,3]
[392556595,1761659448677,-633.50078951,0.00030136,3]
[392556596,1761659448687,-6243.5,0.00030136,3]
[392556597,1761659448697,-500.0,0.00030136,3]
[392556598,1761659448707,-508.49994563,0.00030136,3]
[392556599,1761659448717,-500.0,0.00030136,3]
[392556600,1761659448731,-500.0,0.00030136,3]
[392556601,1761659448741,-500.0,0.00030136,3]
[392556602,1761659448751,-500.0,0.00030136,3]
[392556603,1761659448762,-500.0,0.00030136,3]
[392556604,1761659448773,-500.0,0.00030136,3]
[392556605,1761659448783,-500.0,0.00030136,3]
[392556606,1761659448793,-1349.92,0.00030136,3]
[392556607,1761659448803,-500.0,0.00030136,3]
[392556608,1761659448812,-500.0,0.00030136,3]
[392556609,1761659448823,-503.90297108,0.00030136,3]
[392556610,1761659448833,-170.78108367,0.00030136,3]
[392556611,1761659448843,-500.0,0.00030136,3]
[392556612,1761659448854,-523.41,0.00030136,3]
[392556613,1761659448864,-538.96997702,0.00030136,3]
[392556614,1761659448874,-507.84711177,0.00030136,3]
[392556615,1761659448883,-1357.29,0.00030136,3]
[392556616,1761659448893,-500.0,0.00030136,3]
[392556617,1761659448903,-500.0,0.00030136,3]
[392556618,1761659448915,-500.0,0.00030136,3]
[392556619,1761659448926,-1000.0,0.00030136,3]
[392556620,1761659448941,-500.0,0.00030136,2]
[392556621,1761659448953,-500.0,0.00030136,3]
[392556622,1761659448963,-500.0,0.00030136,3]
[392556623,1761659448975,-202.03655512,0.00030136,3]
[392556624,1761659448987,-1045.76,0.00030136,3]
[392556625,1761659448998,-500.0,0.00030136,3]
[392556626,1761659449010,-500.0,0.00030136,3]
[392556627,1761659449020,-518.21567413,0.00030136,3]
[392556628,1761659449033,-509.4684631,0.00030136,3]
[392556629,1761659449043,-500.0,0.00030136,3]
[392556630,1761659449054,-500.0,0.00030136,3]
[392556631,1761659449065,-500.0,0.00030136,3]
[392556632,1761659449076,-586.49692778,0.00030136,3]
[392556633,1761659449086,-171.58504823,0.00030136,3]
[392556634,1761659449096,-568.7,0.00030136,3]
[392556635,1761659449107,-500.0,0.00030136,3]
[392556636,1761659449118,-500.0,0.00030136,3]
[392556637,1761659449127,-500.0,0.00030136,3]
[392556638,1761659449140,-218.27732059,0.00030136,3]
[392556639,1761659449152,-1267.57,0.00030136,3]
[392556640,1761659449163,-298.42654632,0.00030136,3]
[392556641,1761659449174,-500.0,0.00030136,3]
[392556642,1761659449185,-500.0,0.00030136,3]
[392556643,1761659449196,-539.68743695,0.00030136,3]
[392556644,1761659449207,-500.0,0.00030136,3]
[392556645,1761659449216,-500.0,0.00030136,3]
[392556646,1761659449226,-500.0,0.00030136,3]
[392556647,1761659449236,-218.13655515,0.00030136,3]
[392556648,1761659449246,-500.0,0.00030136,3]
[392556649,1761659449256,-312.94805114,0.00030136,3]
[392556650,1761659449265,-500.0,0.00030136,3]
[392556651,1761659449275,-557.51104311,0.00030136,3]
[392556652,1761659449285,-500.0,0.00030136,3]
[392556653,1761659449296,-353.3973859,0.00030136,3]
[392556654,1761659449308,-202.87825546,0.00030136,3]
[392556655,1761659449318,-500.0,0.00030136,3]
[392556656,1761659449330,-210.1512601,0.00030136,3]
[392556657,1761659449340,-361.78453894,0.00030136,3]
[392556658,1761659449354,-138.21546106,0.00030136,3]
[392556659,1761659449364,-500.0,0.00030136,3]
[392556660,1761659449375,-501.86924194,0.00030136,3]
[392556661,1761659449385,-418.42369298,0.00030136,3]
[392556662,1761659449395,-500.0,0.00030136,3]
[392556663,1761659449405,-324.74836077,0.00030136,3]
[392556664,1761659449415,-200.74206647,0.00030136,3]
[392556665,1761659449425,-526.11361645,0.00030136,3]
[392556666,1761659449435,-500.0,0.00030136,3]
[392556667,1761659449444,-500.0,0.00030136,3]
[392556668,1761659449454,-500.0,0.00030136,3]
[392556669,1761659449463,-500.0,0.00030136,3]
[392556670,1761659449473,-277.57222292,0.00030136,3]
[392556671,1761659449483,-500.0,0.00030136,3]
[392556672,1761659449497,-177.33757495,0.00030136,3]
[392556673,1761659449506,-500.0,0.00030136,3]
[392556674,1761659449516,-500.0,0.00030136,3]
[392556675,1761659449525,-629.13307528,0.00030136,3]
[392556676,1761659449536,-500.0,0.00030136,3]
[392556677,1761659449545,-500.0,0.00030136,3]
[392556678,1761659449555,-500.0,0.00030136,3]
[392556679,1761659449565,-500.0,0.00030136,3]
[392556680,1761659449577,-500.0,0.00030136,3]
[392556681,1761659449587,-277.34423305,0.00030136,3]
[392556682,1761659449596,-500.0,0.00030136,2]
[392556683,1761659449606,-523.91129785,0.00030136,3]
[392556684,1761659449616,-500.0,0.00030136,3]
[392556685,1761659449626,-500.0,0.00030136,2]
[392556686,1761659449636,-500.0,0.00030136,3]
[392556687,1761659449646,-500.0,0.00030136,3]
[392556688,1761659449656,-241.06576839,0.00030136,3]
[392556689,1761659449666,-500.0,0.00030136,3]
[392556690,1761659449676,-500.0,0.00030136,3]
[392556691,1761659449686,-502.11316845,0.00030136,3]
[392556692,1761659449696,-390.01707088,0.00030136,3]
[392556693,1761659449708,-500.0,0.00030136,2]
[392556694,1761659449718,-500.0,0.00030136,3]
[392556695,1761659449727,-500.0,0.00030136,3]
[392556696,1761659449745,-342.53706242,0.00030136,3]
[392556697,1761659449759,-157.46293758,0.00030136,3]
[392556698,1761659449769,-486.2528859,0.00030136,3]
[392556699,1761659449778,-500.0,0.00030136,2]
[392556700,1761659449788,-500.0,0.00030136,3]
[392556701,1761659449798,-500.0,0.00030136,3]
[392556702,1761659449808,-508.29248188,0.00030136,3]
[392556703,1761659449817,-500.0,0.00030136,2]
[392556704,1761659449827,-500.0,0.00030136,3]
[392556705,1761659449837,-1588.54,0.00030136,3]
[392556706,1761659449846,-500.0,0.00030136,3]
[392556707,1761659449856,-352.37294335,0.00030136,3]
[392556708,1761659449867,-500.0,0.00030136,3]
[392556709,1761659449880,-500.0,0.00030136,2]
[392556710,1761659449891,-500.0,0.00030136,3]
[392556711,1761659449903,-500.0,0.00030136,3]
[392556712,1761659449914,-500.0,0.00030136,3]
[392556713,1761659449923,-500.0,0.00030136,3]
[392556714,1761659449933,-268.76716764,0.00030136,2]
[392556715,1761659449945,-231.23283236,0.00030136,2]
[392556716,1761659449955,-461.88678304,0.00030136,3]
[392556717,1761659449964,-500.0,0.00030136,3]
[392556718,1761659449973,-500.0,0.00030136,3]
[392556719,1761659449984,-500.0,0.00030136,3]
[392556720,1761659449993,-331.0403846,0.00030136,3]
[392556781,1761660632244,-150.0,0.00027838,4]
[392556783,1761660632253,-300.0,0.00028165,2]
[392556785,1761660632262,-800.0,0.00028492,7]
[392556787,1761660632271,-500.0,0.00028492,7]
[392556789,1761660632281,-300.0,0.00028492,7]
[392556791,1761660632290,-300.0,0.000286,2]
[392556793,1761660632299,-414.82021093,0.000286,2]
[392556795,1761660632308,-150.0,0.00028835,2]
[392556798,1761660632318,-1871.95,0.00028888,2]
[392556800,1761660632328,-999.0,0.00028944,3]
[392556802,1761660632337,-501.77,0.00028954,2]
[392556804,1761660632346,-250.0,0.00028965,2]
[392556806,1761660632356,-977.9,0.00029018,2]
[392556807,1761660632365,-475.88,0.00029041,2]
[392556809,1761660632374,-199.01588,0.00029061,2]
[392556812,1761660632384,-11055.96,0.00029062,2]
[392556814,1761660632395,-633.06,0.00029178,2]
[392556816,1761660632405,-1601.15,0.00029193,2]
[392556818,1761660632414,-574.71009969,0.0002924,2]
[392556820,1761660632423,-1458.0,0.00029266,2]
[392556822,1761660632433,-800.0,0.00029314,7]
[392556824,1761660632442,-357.0,0.00029459,2]
[392556826,1761660632452,-947.0,0.00029498,2]
[392556828,1761660632462,-573.0,0.00029557,2]
[392556830,1761660632471,-1000.0,0.000298,2]
[392556833,1761660632482,-200.0,0.00029818,2]
[392556836,1761660632491,-506.07,0.00029863,14]
[392556839,1761660632500,-1000.0,0.00029863,7]
[392556842,1761660632509,-1000.0,0.00029863,7]
[392556845,1761660632521,-1000.0,0.00029863,7]
[392556848,1761660632531,-1000.0,0.00029863,7]
[392556851,1761660632540,-1000.0,0.00029863,7]
[392556854,1761660632549,-1000.0,0.00029863,7]
[392556856,1761660632559,-1000.0,0.00029863,7]
[392556858,1761660632568,-1000.0,0.00029863,7]
[392556860,1761660632578,-1000.0,0.00029863,7]
[392556862,1761660632588,-1000.0,0.00029863,7]
[392556864,1761660632597,-806.37581876,0.00029863,7]
[392556934,1761660638048,-193.62418124,0.00029863,7]
[392556935,1761660638058,-1000.0,0.00029863,7]
[392556936,1761660638068,-1000.0,0.00029863,7]
[392556937,1761660638077,-1000.0,0.00029863,7]
[392556938,1761660638086,-618.160728,0.00029863,7]
[392556939,1761660638101,-381.839272,0.00029863,7]
[392556940,1761660638110,-1000.0,0.00029863,7]
[392556941,1761660638121,-698.160728,0.00029863,7]
[392556942,1761660638132,-301.839272,0.00029863,7]
[392556943,1761660638142,-1000.0,0.00029863,7]
[392556944,1761660638152,-1000.0,0.00029863,7]
[392556945,1761660638162,-1000.0,0.00029863,7]
[392556946,1761660638171,-1000.0,0.00029863,7]
[392556947,1761660638181,-1000.0,0.00029863,7]
[392556948,1761660638190,-1000.0,0.00029863,7]
[392556949,1761660638200,-1000.0,0.00029863,7]
[392556950,1761660638210,-1000.0,0.00029863,7]
[392556951,1761660638219,-1000.0,0.00029863,7]
[392556952,1761660638228,-1000.0,0.00029863,7]
[392556953,1761660638238,-1000.0,0.00029863,7]
[392556954,1761660638247,-1000.0,0.00029863,7]
[392556955,1761660638257,-1000.0,0.00029863,7]
[392556956,1761660638266,-1000.0,0.00029863,7]
[392556957,1761660638276,-1000.0,0.00029863,7]
[392556958,1761660638285,-1000.0,0.00029863,7]
[392556959,1761660638295,-1000.0,0.00029863,7]
[392556960,1761660638304,-1000.0,0.00029863,7]
[392556961,1761660638314,-964.05744664,0.00029863,7]
[392556962,1761660638325,-35.94255336,0.00029863,7]
[392556963,1761660638334,-1000.0,0.00029863,7]
[392556964,1761660638343,-1000.0,0.00029863,7]
[392556965,1761660638353,-1000.0,0.00029863,7]
[392556966,1761660638362,-1000.0,0.00029863,7]
[392556967,1761660638372,-1000.0,0.00029863,7]
[392556968,1761660638382,-1000.0,0.00029863,7]
[392556969,1761660638391,-1000.0,0.00029863,7]
[392556971,1761660638401,-1000.0,0.00029863,7]
[392556973,1761660638411,-1000.0,0.00029863,7]
[392556975,1761660638420,-1000.0,0.00029863,7]
[392556977,1761660638429,-1000.0,0.00029863,7]
[392556979,1761660638439,-1551.23260721,0.00029863,7]
[392556980,1761660638448,-637.433,0.00029894,24]
[392556981,1761660638458,-500.0,0.00029899,3]
[392556982,1761660638467,-500.0,0.00029899,3]
[392556983,1761660638477,-500.0,0.00029899,3]
[392556985,1761660638486,-500.0,0.00029899,3]
[392556987,1761660638496,-216.9840129,0.00029905,2]
[392556988,1761660638505,-151.0,0.00029936,2]
[392556989,1761660638515,-151.0,0.00029936,2]
[392556990,1761660638524,-151.0,0.00029936,2]
[392556991,1761660638533,-151.0,0.00029936,2]
[392556992,1761660638543,-151.0,0.00029936,2]
[392556993,1761660638552,-168.83364264,0.00029936,2]
[392556994,1761660638562,-209.206,0.00029954,2]
[392556995,1761660638571,-250.0,0.00029954,2]
[392556996,1761660638581,-209.528,0.00029954,2]
[392556997,1761660638590,-218.073,0.00029954,2]
[392556998,1761660638600,-3417.0,0.00029954,2]
[392556999,1761660638609,-2056.0,0.00029954,2]
[392557000,1761660638617,-606.0,0.00029954,2]
[392557001,1761660638626,-1313.0,0.00029954,2]
[392557002,1761660638636,-1593.0,0.00029954,2]
[392557003,1761660638645,-818.0,0.00029954,2]
[392557004,1761660638654,-1271.0,0.00029954,2]
[392557005,1761660638664,-1186.0,0.00029954,2]
[392557006,1761660638673,-905.248,0.00029954,2]
[392557007,1761660638683,-396.942,0.00029954,2]
[392557008,1761660638692,-4708.135,0.00029954,2]
[392557009,1761660638702,-500.0,0.0002998,3]
[392557010,1761660638712,-556.89451788,0.00029989,3]
[392557011,1761660638721,-1425.0,0.00029994,2]
[392557012,1761660638731,-657.44624654,0.0003,2]
[392557013,1761660638741,-162.37,0.0003,120]
[392557014,1761660638750,-168.0,0.00030026,2]
[392557015,1761660638760,-267.6,0.00030027,2]
[392557016,1761660638770,-968.0827,0.00030036,2]
[392557017,1761660638779,-2285.5641,0.00030036,2]
[392557018,1761660638789,-3241.87204823,0.00030036,2]
[392557019,1761660638799,-166.88052057,0.00030036,15]
[392557020,1761660638809,-183.22195991,0.00030036,2]
[392557021,1761660638818,-1425.0,0.00030038,2]
[392557022,1761660638828,-500.0,0.0003007,120]
[392557023,1761660638838,-523.173973,0.0003007,120]
[392557024,1761660638847,-820.80326935,0.00030075,2]
[392557025,1761660638857,-423.16318921,0.000301,2]
[392557026,1761660638867,-1425.0,0.00030124,2]
[392557027,1761660638877,-8246.30419176,0.00030126,3]
[392557028,1761660638923,-3708.19353842,0.00030126,3]
[392557029,1761660638939,-1437.76353558,0.00030126,3]
[392557040,1761660640195,-6927.7056,0.00030126,3]
[392557041,1761660640254,-448.2345001,0.00030126,3]
[392557042,1761660640314,-50196.38153554,0.00030126,3]
[392557043,1761660640323,-163.24,0.00030126,2]
[392557044,1761660640332,-163.26646439,0.00030126,2]
[392557045,1761660640341,-301.05294214,0.00030136,2]
[392557046,1761660640350,-33670.95469115,0.00030136,2]
[392557047,1761660640430,-378.91328779,0.00030136,2]
[392557048,1761660640443,-253.03252887,0.00030136,2]
[392557049,1761660640545,-45913.11303151,0.00030136,2]
[392557069,1761660643259,-8371.8945581,0.00030136,2]
[392557070,1761660643269,-1421.78323689,0.00030136,2]
[392557071,1761660643280,-1008.52999998,0.00030136,2]
[392557072,1761660643291,-2105.6135031,0.00030136,2]
[392557073,1761660644327,-34742.83898261,0.00030136,2]
[392557074,1761660644337,-500.0,0.00030136,2]
[392557075,1761660644346,-500.0,0.00030136,3]
[392557076,1761660644355,-560.0,0.00030136,2]
[392557077,1761660644364,-500.0,0.00030136,2]
[392557078,1761660644374,-504.23598676,0.00030136,3]
[392557079,1761660644382,-452.38945734,0.00030136,3]
[392557080,1761660644394,-500.0,0.00030136,3]
[392557081,1761660644403,-500.0,0.00030136,3]
[392557082,1761660644413,-500.0,0.00030136,3]
[392557083,1761660644422,-500.0,0.00030136,3]
[392557084,1761660644431,-500.0,0.00030136,3]
[392557085,1761660644440,-500.0,0.00030136,3]
[392557086,1761660644449,-1013.95,0.00030136,3]
[392557087,1761660644458,-800.0,0.00030136,7]
[392557088,1761660644466,-500.0,0.00030136,3]
[392557089,1761660644475,-500.0,0.00030136,3]
[392557090,1761660644484,-500.0,0.00030136,3]
[392557091,1761660644493,-500.0,0.00030136,3]
[392557092,1761660644502,-40264.3026484,0.00030136,2]
[392557093,1761660644511,-500.0,0.00030136,3]
[392557094,1761660644520,-966.56,0.00030136,3]
[392557095,1761660644529,-500.0,0.00030136,3]
[392557096,1761660644538,-526.29768702,0.00030136,3]
[392557097,1761660644547,-500.0,0.00030136,7]
[392557098,1761660644556,-500.0,0.00030136,3]
[392557099,1761660644565,-500.0,0.00030136,2]
[392557100,1761660644574,-500.0,0.00030136,3]
[392557101,1761660644582,-500.0,0.00030136,3]
[392557102,1761660644591,-500.0,0.00030136,3]
[392557103,1761660644601,-500.0,0.00030136,2]
[392557104,1761660644610,-500.0,0.00030136,3]
[392557105,1761660644619,-500.0,0.00030136,3]
[392557106,1761660644629,-500.0,0.00030136,3]
[392557107,1761660644639,-894.25,0.00030136,3]
[392557108,1761660644648,-579.23,0.00030136,2]
[392557109,1761660644657,-300.0,0.00030136,3]
[392557110,1761660644666,-500.0,0.00030136,3]
[392557111,1761660644675,-500.0,0.00030136,3]
[392557113,1761660644684,-375.28838655,0.00030136,3]
[392557114,1761660644693,-500.0,0.00030136,3]
[392557115,1761660644702,-767.52,0.00030136,3]
[392557116,1761660644711,-500.0,0.00030136,3]
[392557117,1761660644720,-183.80498276,0.00030136,3]
[392557118,1761660644729,-500.0,0.00030136,3]
[392557119,1761660644740,-500.0,0.00030136,3]
[392557120,1761660644749,-500.0,0.00030136,3]
[392557121,1761660644759,-500.0,0.00030136,3]
[392557122,1761660644768,-524.36,0.00030136,3]
[392557123,1761660644777,-375.17402112,0.00030136,3]
[392557124,1761660644787,-515.81689282,0.00030136,3]
[392557125,1761660644796,-500.0,0.00030136,3]
[392557126,1761660644807,-778.87,0.00030136,3]
[392557127,1761660644816,-500.0,0.00030136,3]
[392557128,1761660644825,-500.0,0.00030136,3]
[392557129,1761660644836,-500.0,0.00030136,3]
[392557130,1761660644845,-500.0,0.00030136,3]
[392557131,1761660644854,-507.43423492,0.00030136,3]
[392557132,1761660644863,-525.4,0.00030136,3]
[392557133,1761660644872,-500.0,0.00030136,3]
[392557134,1761660644881,-500.0,0.00030136,3]
[392557135,1761660644891,-500.0,0.00030136,3]
[392557136,1761660644900,-500.0,0.00030136,3]
[392557137,1761660644909,-500.0,0.00030136,3]
[392557138,1761660644918,-500.0,0.00030136,3]
[392557139,1761660644931,-500.0,0.00030136,3]
[392557140,1761660644940,-500.0,0.00030136,3]
[392557141,1761660644950,-500.0,0.00030136,3]
[392557142,1761660644959,-500.0,0.00030136,3]
[392557143,1761660644968,-500.0,0.00030136,3]
[392557144,1761660644977,-500.0,0.00030136,3]
[392557145,1761660644987,-500.0,0.00030136,3]
[392557146,1761660644996,-500.0,0.00030136,3]
[392557147,1761660645007,-500.0,0.00030136,3]
[392557148,1761660645017,-500.0,0.00030136,3]
[392557149,1761660645027,-500.0,0.00030136,3]
[392557150,1761660645039,-523.79929399,0.00030136,3]
[392557151,1761660645048,-500.0,0.00030136,3]
[392557152,1761660645057,-500.0,0.00030136,3]
[392557153,1761660645065,-500.0,0.00030136,3]
[392557154,1761660645075,-489.06659416,0.00030136,3]
[392557155,1761660645083,-275.23252449,0.00030136,3]
[392557156,1761660645094,-522.27227614,0.00030136,3]
[392557157,1761660645103,-500.0,0.00030136,3]
[392557158,1761660645112,-500.0,0.00030136,3]
[392557159,1761660645121,-500.0,0.00030136,3]
[392557160,1761660645130,-500.0,0.00030136,3]
[392557161,1761660645139,-525.19760411,0.00030136,3]
[392557162,1761660645150,-500.0,0.00030136,3]
[392557163,1761660645159,-500.0,0.00030136,3]
[392557164,1761660645168,-635.9014016,0.00030136,3]
[392557165,1761660645177,-500.0,0.00030136,3]
[392557166,1761660645185,-500.0,0.00030136,3]
[392557167,1761660645194,-3284.69,0.00030136,2]
[392557168,1761660645203,-164.92901901,0.00030136,3]
[392557169,1761660645212,-327.38808315,0.00030136,3]
[392557170,1761660645221,-619.13,0.00030136,3]
[392557171,1761660645231,-552.21681995,0.00030136,3]
[392557172,1761660645239,-500.0,0.00030136,3]
[392557173,1761660645248,-500.0,0.00030136,3]
[392557174,1761660645257,-150.000001,0.00030136,2]
[392557175,1761660645266,-546.47312227,0.00030136,3]
[392557176,1761660645275,-500.0,0.00030136,3]
[392557177,1761660645284,-722.73,0.00030136,3]
[392557178,1761660645293,-500.0,0.00030136,3]
[392557179,1761660645302,-500.0,0.00030136,3]
[392557180,1761660645311,-500.0,0.00030136,3]
[392557181,1761660645320,-500.0,0.00030136,3]
[392557182,1761660645329,-500.0,0.00030136,3]
[392557183,1761660645338,-500.0,0.00030136,3]
[392557184,1761660645348,-621.42,0.00030136,3]
[392557185,1761660645357,-500.0,0.00030136,3]
[392557186,1761660645367,-500.0,0.00030136,3]
[392557187,1761660645376,-500.0,0.00030136,3]
[392557188,1761660645385,-2073.1,0.00030136,3]
[392557189,1761660645395,-500.0,0.00030136,3]
[392557190,1761660645404,-500.0,0.00030136,3]
[392557191,1761660645413,-500.0,0.00030136,3]
[392557192,1761660645423,-500.0,0.00030136,3]
[392557193,1761660645432,-500.0,0.00030136,3]
[392557194,1761660645440,-500.0,0.00030136,3]
[392557195,1761660645450,-500.0,0.00030136,3]
[392557196,1761660645459,-155.1617886,0.00030136,2]
[392557197,1761660645468,-500.0,0.00030136,3]
[392557198,1761660645477,-1450.26,0.00030136,3]
[392557199,1761660645487,-1522.36,0.00030136,3]
[392557200,1761660645496,-500.0,0.00030136,3]
[392557201,1761660645506,-500.0,0.00030136,3]
[392557202,1761660645515,-500.0,0.00030136,3]
[392557203,1761660645524,-500.0,0.00030136,3]
[392557204,1761660645533,-500.0,0.00030136,3]
[392557205,1761660645542,-500.0,0.00030136,3]
[392557206,1761660645551,-891.34,0.00030136,3]
[392557207,1761660645561,-500.0,0.00030136,3]
[392557208,1761660645571,-500.0,0.00030136,3]
[392557209,1761660645580,-500.0,0.00030136,3]
[392557210,1761660645589,-3744.82,0.00030136,3]
[392557211,1761660645598,-500.0,0.00030136,3]
[392557212,1761660645607,-2157.94,0.00030136,3]
[392557213,1761660645617,-500.0,0.00030136,3]
[392557214,1761660645626,-500.0,0.00030136,3]
[392557215,1761660645635,-500.0,0.00030136,3]
[392557216,1761660645646,-594.16,0.00030136,3]
[392557217,1761660645655,-2220.93,0.00030136,3]
[392557218,1761660645664,-500.0,0.00030136,3]
[392557219,1761660645674,-216.89683447,0.00030136,2]
[392557220,1761660645683,-500.0,0.00030136,3]
[392557221,1761660645691,-1300.73,0.00030136,3]
[392557222,1761660645700,-150.0,0.00030136,2]
[392557223,1761660645710,-500.0,0.00030136,2]
[392557224,1761660645719,-500.0,0.00030136,3]
[392557225,1761660645728,-1000.0,0.00030136,3]
[392557226,1761660645738,-500.0,0.00030136,3]
[392557227,1761660645748,-500.0,0.00030136,3]
[392557228,1761660645758,-2086.78,0.00030136,3]
[392557229,1761660645767,-500.0,0.00030136,3]
[392557230,1761660645776,-525.54517064,0.00030136,3]
[392557231,1761660645785,-500.0,0.00030136,3]
[392557232,1761660645795,-500.0,0.00030136,3]
[392557233,1761660645804,-300.0,0.00030136,2]
[392557234,1761660645813,-500.0,0.00030136,3]
[392557235,1761660645823,-500.0,0.00030136,3]
[392557236,1761660645833,-800.0,0.00030136,30]
[392557237,1761660645843,-200.0,0.00030136,30]
[392557238,1761660645852,-338.87063855,0.00030136,3]
[392557239,1761660645861,-500.0,0.00030136,3]
[392557241,1761660645871,-500.0,0.00030136,3]
[392557242,1761660645881,-1896.82,0.00030136,3]
[392557243,1761660645892,-500.0,0.00030136,3]
[392557244,1761660645902,-500.0,0.00030136,3]
[392557245,1761660645911,-500.0,0.00030136,3]
[392557246,1761660645921,-500.0,0.00030136,3]
[392557248,1761660645934,-500.0,0.00030136,3]
[392557250,1761660645943,-500.0,0.00030136,3]
[392557252,1761660645952,-195.98913128,0.00030136,3]
[392557253,1761660645961,-500.0,0.00030136,2]
[392557254,1761660645970,-500.0,0.00030136,3]
[392557255,1761660645979,-153.10174,0.00030136,2]
[392557256,1761660645988,-500.0,0.00030136,3]
[392557257,1761660645998,-500.0,0.00030136,3]
[392557258,1761660646007,-500.0,0.00030136,3]
[392557259,1761660646016,-500.0,0.00030136,3]
[392557260,1761660646025,-500.0,0.00030136,3]
[392557261,1761660646034,-500.0,0.00030136,3]
[392557262,1761660646044,-500.0,0.00030136,3]
[392557263,1761660646053,-231.04588515,0.00030136,2]
[392557265,1761660646062,-423.6327284,0.00030136,3]
[392557266,1761660646071,-514.56470928,0.00030136,3]
[392557267,1761660646080,-500.0,0.00030136,3]
[392557268,1761660646090,-500.0,0.00030136,3]
[392557269,1761660646099,-500.0,0.00030136,3]
[392557270,1761660646108,-302.5291055,0.00030136,3]
[392557272,1761660646117,-500.0,0.00030136,3]
[392557280,1761660646296,-500.0,0.00030136,3]
[392557281,1761660646307,-500.0,0.00030136,3]
[392557282,1761660646317,-500.0,0.00030136,3]
[392557283,1761660646326,-500.0,0.00030136,10]
[392557284,1761660646335,-500.0,0.00030136,10]
[392557285,1761660646345,-500.0,0.00030136,3]
[392557286,1761660646354,-589.51,0.00030136,3]
[392557287,1761660646363,-500.0,0.00030136,10]
[392557288,1761660646373,-536.5707371,0.00030136,3]
[392557289,1761660646383,-500.0,0.00030136,2]
[392557290,1761660646394,-500.0,0.00030136,3]
[392557291,1761660646404,-500.0,0.00030136,3]
[392557292,1761660646413,-150.0,0.00030136,10]
[392557293,1761660646423,-507.75552539,0.00030136,3]
[392557294,1761660646432,-500.0,0.00030136,10]
[392557295,1761660646441,-221.34935578,0.00030136,3]
[392557296,1761660646453,-223.32028001,0.00030136,3]
[392557297,1761660646463,-500.0,0.00030136,3]
[392557298,1761660646473,-500.0,0.00030136,3]
[392557299,1761660646483,-500.0,0.00030136,3]
[392557300,1761660646492,-300.0,0.00030136,2]
[392557301,1761660646502,-500.0,0.00030136,3]
[392557302,1761660646511,-185.60166217,0.00030136,3]
[392557303,1761660646520,-500.0,0.00030136,3]
[392557304,1761660646530,-500.0,0.00030136,3]
[392557305,1761660646540,-172.52252934,0.00030136,3]